fUSD/lending_fUSD_20240915
["ID","MTS","AMOUNT","RATE_DAILY","PERIOD"]
[338212697,1726387838912,-150.0,0.00014218,2]
[338212698,1726387838922,-296.0,0.00014221,2]
[338212699,1726387838931,-150.0,0.00014226,2]
[338212700,1726387838940,-150.0,0.0001423,2]
[338212701,1726387838949,-150.0,0.00014234,2]
[338212702,1726387838958,-150.0,0.00014242,2]
[338212703,1726387838969,-150.0,0.00014244,2]
[338212704,1726387838978,-150.0,0.00014245,2]
[338212705,1726387838987,-150.0,0.00014245,2]
[338212706,1726387838996,-150.0,0.0001425,2]
[338212707,1726387839005,-150.0,0.00014253,2]
[338212708,1726387839015,-150.0,0.00014254,2]
[338212709,1726387839024,-150.0,0.00014255,2]
[338212710,1726387839033,-150.0,0.00014258,2]
[338212711,1726387839043,-150.0,0.00014268,2]
[338212712,1726387839052,-150.0,0.0001427,2]
[338212713,1726387839061,-150.0,0.00014273,2]
[338212714,1726387839071,-150.0,0.00014276,2]
[338212715,1726387839080,-150.0,0.0001428,2]
[338212716,1726387839089,-150.0,0.0001428,2]
[338212717,1726387839098,-1158.96665,0.0001428,2]
[338212718,1726387839108,-150.0,0.00014283,2]
[338212719,1726387839118,-150.0,0.00014289,2]
[338212720,1726387839127,-150.0,0.00014289,2]
[338212721,1726387839136,-150.0,0.0001429,2]
[338212722,1726387839146,-150.0,0.00014295,2]
[338212723,1726387839155,-150.0,0.00014295,2]
[338212724,1726387839165,-150.0,0.00014298,2]
[338212725,1726387839175,-150.0,0.00014301,2]
[338212726,1726387839186,-124.03299716,0.00014302,2]
[338212727,1726387839198,-25.96700284,0.00014302,2]
[338212728,1726387839208,-150.0,0.00014304,2]
[338212729,1726387839217,-150.0,0.00014307,2]
[338212730,1726387839226,-150.0,0.0001432,2]
[338212731,1726387839235,-150.0,0.00014322,2]
[338212732,1726387839245,-150.0,0.00014329,2]
[338212733,1726387839255,-150.0,0.0001434,2]
[338212734,1726387839265,-150.0,0.00014342,2]
[338212735,1726387839275,-150.0,0.00014345,2]
[338212736,1726387839285,-150.0,0.00014353,2]
[338212737,1726387839294,-150.0,0.00014354,2]
[338212738,1726387839303,-150.0,0.00014358,2]
[338212739,1726387839313,-150.0,0.00014358,2]
[338212740,1726387839323,-150.0,0.00014362,2]
[338212741,1726387839333,-150.0,0.00014364,2]
[338212742,1726387839342,-150.0,0.00014365,2]
[338212743,1726387839352,-150.0,0.0001437,2]
[338212744,1726387839362,-150.0,0.0001437,2]
[338212745,1726387839371,-150.0,0.00014372,2]
[338212746,1726387839380,-150.0,0.00014377,2]
[338212747,1726387839390,-150.0,0.00014377,2]
[338212748,1726387839399,-150.0,0.00014379,2]
[338212749,1726387839408,-3020.52,0.00014384,2]
[338212750,1726387839418,-150.0,0.00014386,2]
[338212751,1726387839427,-150.0,0.0001439,2]
[338212752,1726387839436,-150.0,0.00014391,2]
[338212753,1726387839445,-150.0,0.00014395,2]
[338212754,1726387839455,-150.0,0.00014396,2]
[338212755,1726387839464,-150.0,0.00014399,2]
[338212756,1726387839474,-150.0,0.00014402,2]
[338212757,1726387839483,-150.0,0.00014405,2]
[338212758,1726387839493,-150.0,0.00014407,2]
[338212759,1726387839502,-150.0,0.00014407,2]
[338212760,1726387839511,-150.0,0.00014407,2]
[338212761,1726387839520,-150.0,0.00014418,2]
[338212762,1726387839529,-150.0,0.00014418,2]
[338212763,1726387839538,-150.0,0.0001442,2]
[338212764,1726387839547,-1267.6672425,0.0001442,2]
[338212765,1726387839556,-16962.96719519,0.0001442,2]
[338212766,1726387839614,-4132.94845234,0.0001442,2]
[338212767,1726387839626,-553.04533327,0.0001442,2]
[338212768,1726387839642,-16185.9215842,0.0001442,2]
[338212769,1726387839652,-909.22022329,0.0001442,2]
[338212770,1726387839730,-857.03651611,0.0001442,2]
[338212771,1726387839741,-8579.5128261,0.0001442,2]
[338212772,1726387839751,-2988.19751593,0.0001442,2]
[338212773,1726387839763,-10767.53964931,0.0001442,2]
[338212774,1726387839801,-205.13880376,0.0001442,2]
[338212775,1726387839811,-150.0,0.00014424,2]
[338212776,1726387839821,-150.0,0.00014424,2]
[338212777,1726387839832,-152.0,0.00014429,5]
[338212778,1726387839841,-85.48434231,0.00014439,2]
[338212779,1726387839904,-2000.0,0.00014439,2]
[338212780,1726387839915,-2565.0,0.00014439,2]
[338212781,1726387839927,-659.2,0.00014439,2]
[338212955,1726387939160,150.0,0.00011164,2]
[338212956,1726387939184,351.11035913,0.00011164,2]
[338212957,1726387962459,150.0,0.00011164,2]
[338212958,1726387962483,150.0,0.00011164,2]
[338212959,1726387962504,150.0,0.00011164,2]
[338212960,1726387962525,53.94321341,0.00011164,2]
[338212961,1726387996463,335.48,0.00011575,2]
[338212965,1726388615111,271.57059912,0.000125,2]
[338212966,1726388615138,728.42940088,0.000125,2]
[338212967,1726388660609,333.32,0.00011341,2]
[338212968,1726388848658,182.46,0.00010959,2]
[338212969,1726388859160,150.0,0.00010959,2]
[338212970,1726388859182,2.05,0.00010959,2]
[338212971,1726388869691,150.0,0.00010959,2]
[338212972,1726388869712,150.0,0.00010959,2]
[338212973,1726388869734,150.0,0.00010959,2]
[338212974,1726388869755,150.0,0.00010959,2]
[338212975,1726388869776,150.0,0.00010959,2]
[338212976,1726388869798,10.28,0.00010959,2]
[338212987,1726389032182,-250.0,0.000127,2]
[338212988,1726389032192,-180.21,0.000127,2]
[338212989,1726389032201,-266.03214904,0.00012873,2]
[338212990,1726389032211,-266.03214903,0.00012899,2]
[338212991,1726389032222,-153.28569643,0.000129,2]
[338212992,1726389032231,-200.02749491,0.00012973,2]
[338212993,1726389032241,-151.52,0.0001299,2]
[338212994,1726389032250,-151.52,0.0001299,2]
[338212995,1726389032259,-151.52,0.0001299,2]
[338212996,1726389032268,-151.52,0.0001299,2]
[338212997,1726389032277,-151.52,0.0001299,2]
[338212998,1726389032286,-151.52,0.0001299,2]
[338212999,1726389032296,-151.52,0.0001299,2]
[338213000,1726389032305,-151.52,0.0001299,2]
[338213001,1726389032314,-151.52,0.0001299,2]
[338213002,1726389032323,-151.52,0.0001299,2]
[338213003,1726389032333,-151.52,0.0001299,2]
[338213004,1726389032341,-151.52,0.0001299,2]
[338213005,1726389032351,-151.52,0.0001299,2]
[338213006,1726389032360,-151.52,0.0001299,2]
[338213007,1726389032369,-151.52,0.0001299,2]
[338213008,1726389032378,-151.52,0.0001299,2]
[338213009,1726389032387,-151.52,0.0001299,2]
[338213010,1726389032396,-151.52,0.0001299,2]
[338213011,1726389032406,-151.52,0.0001299,2]
[338213012,1726389032415,-151.52,0.0001299,2]
[338213014,1726389032424,-151.52,0.0001299,2]
[338213015,1726389032433,-151.52,0.0001299,2]
[338213016,1726389032442,-84.28455224,0.0001299,2]
[338213017,1726389036641,250.0,0.00012536,2]
[338213018,1726389038190,-67.23544776,0.0001299,2]
[338213019,1726389038200,-151.52,0.0001299,2]
[338213020,1726389038211,-151.52,0.0001299,2]
[338213021,1726389038220,-151.52,0.0001299,2]
[338213022,1726389038230,-151.52,0.0001299,2]
[338213023,1726389038240,-151.52,0.0001299,2]
[338213024,1726389038250,-151.52,0.0001299,2]
[338213025,1726389038260,-35.0049279,0.0001299,2]
[338213026,1726389038460,-116.5150721,0.0001299,2]
[338213027,1726389038470,-151.52,0.0001299,2]
[338213028,1726389038480,-151.52,0.0001299,2]
[338213029,1726389038490,-151.52,0.0001299,2]
[338213030,1726389038500,-151.52,0.0001299,2]
[338213031,1726389038510,-151.52,0.0001299,2]
[338213032,1726389038520,-151.52,0.0001299,2]
[338213033,1726389038530,-151.52,0.0001299,2]
[338213034,1726389038539,-151.52,0.0001299,2]
[338213035,1726389038549,-151.52,0.0001299,2]
[338213036,1726389038560,-151.52,0.0001299,2]
[338213037,1726389038569,-151.52,0.0001299,2]
[338213038,1726389038579,-151.52,0.0001299,2]
[338213039,1726389038589,-151.52,0.0001299,2]
[338213041,1726389038599,-151.52,0.0001299,2]
[338213043,1726389038609,-151.52,0.0001299,2]
[338213045,1726389038619,-151.52,0.0001299,2]
[338213047,1726389038629,-151.52,0.0001299,2]
[338213049,1726389038639,-151.52,0.0001299,2]
[338213051,1726389038649,-151.52,0.0001299,2]
[338213053,1726389038659,-151.52,0.0001299,2]
[338213055,1726389038669,-151.52,0.0001299,2]
[338213057,1726389038680,-151.52,0.0001299,2]
[338213059,1726389038691,-151.52,0.0001299,2]
[338213060,1726389038700,-500.0,0.00012999,2]
[338213062,1726389038710,-274.91899362,0.00012999,2]
[338213064,1726389038720,-600.06358383,0.00012999,2]
[338213066,1726389038730,-500.0,0.00012999,2]
[338213068,1726389038740,-150.0,0.00012999,2]
[338213070,1726389038750,-90611.35212479,0.00013,2]
[338213072,1726389038761,-1036.05,0.00013,2]
[338213074,1726389038771,-8108530.92806798,0.00013,2]
[338213075,1726389038783,-396783.33611667,0.00013,2]
[338213089,1726389038941,-65631.5728998,0.00013,2]
[338213136,1726389040138,-1154.46330671,0.00013,2]
[338213137,1726389040196,-11154.02902372,0.00013,2]
[338213138,1726389040417,-81008.86011427,0.00013,2]
[338213139,1726389040429,-2845.76585434,0.00013,2]
[338213140,1726389040440,-67260.86237361,0.00013,2]
[338213153,1726389043178,-29007.93520371,0.00013,2]
[338213154,1726389043192,-23586.16601673,0.00013,2]
[338213155,1726389043204,-29684.31084554,0.00013,2]
[338213156,1726389043234,-1034.61461781,0.00013,2]
[338213172,1726389045523,-31627.22698091,0.00013,2]
[338213173,1726389045533,-647.03681964,0.00013,2]
[338213174,1726389045554,-352.96318036,0.00013,2]
[338213179,1726389046416,-3518.04920049,0.00013,2]
[338213181,1726389085883,150.0,0.00010959,2]
[338213182,1726389085906,150.0,0.00010959,2]
[338213183,1726389085929,150.0,0.00010959,2]
[338213184,1726389085952,150.0,0.00010959,2]
[338213185,1726389085984,150.0,0.00010959,2]
[338213186,1726389086008,55.96,0.00010959,2]
[338213187,1726389121074,94.04,0.0001264,3]
[338213188,1726389121094,150.0,0.0001264,3]
[338213189,1726389121116,55.96,0.0001264,3]
[338213190,1726389121932,94.04,0.00011164,2]
[338213191,1726389121954,150.0,0.00011164,2]
[338213192,1726389121976,293.99936292,0.00011164,2]
[338213193,1726389122004,61.96063708,0.00011164,2]
[338213194,1726389175650,357.9,0.00010707,2]
[338213195,1726389208634,237.51,0.00012496,2]
[338213196,1726389217743,4548.7,0.00012596,2]
[338213197,1726389234241,163.16,0.00012496,2]
[338213198,1726389234442,163.16,0.00012503,2]
[338213199,1726389234652,163.16,0.0001251,2]
[338213200,1726389234868,163.16,0.00012517,2]
[338213201,1726389235071,163.16,0.00012524,2]
[338213202,1726389235271,163.16,0.00012531,2]
[338213203,1726389235498,163.16,0.00012538,2]
[338213204,1726389235720,163.16,0.00012545,2]
[338213205,1726389236332,163.16,0.00012552,2]
[338213206,1726389236388,163.16,0.00012559,2]
[338213207,1726389334182,912.4,0.00012377,2]
[338213208,1726389348972,157.41,0.00010959,2]
[338213209,1726389372612,389.44,0.00012556,2]
[338213210,1726389376378,500.0,0.00012556,3]
[338213211,1726389381590,150.0,0.00012579,2]
[338213212,1726389386210,581.42,0.00012556,2]
[338213213,1726389424712,338.11,0.00012505,2]
[338213214,1726389445334,18678.48,0.00012455,2]
[338213215,1726389453939,200.0,0.00012455,2]
[338213216,1726389462450,1350.0,0.00012494,2]
[338213217,1726389482892,154.21,0.00012552,2]
[338213218,1726389550240,250.0,0.00012521,2]
[338213219,1726389551706,281.38726483,0.00013533,30]
[338213220,1726389567101,2000.0,0.00012521,2]
[338213221,1726389598017,200.0,0.00014253,60]
[338213222,1726389645346,798.96,0.00012579,2]
[338213223,1726389679232,340.0,0.00010715,2]
[338213224,1726389730457,250.0,0.00012579,2]
[338213225,1726389861263,-151.89,0.00012669,2]
[338213226,1726389861284,-151.89,0.00012669,2]
[338213227,1726389861307,-151.89,0.00012669,2]
[338213228,1726389861329,-2000.0,0.00012679,2]
[338213229,1726389861350,-2000.0,0.00012679,23]
[338213230,1726389861372,-2000.0,0.00012679,2]
[338213231,1726389861393,-3000.0,0.00012679,2]
[338213232,1726389861413,-544.33,0.00012679,2]
[338213233,1726389862017,-1455.67,0.00012679,2]
[338213234,1726389862038,-151.89,0.00012769,2]
[338213235,1726389862058,-151.89,0.00012769,2]
[338213236,1726389862079,-151.89,0.00012769,2]
[338213237,1726389862098,-263.831,0.00012769,2]
[338213238,1726389862117,-2000.0,0.00012779,2]
[338213239,1726389862136,-2000.0,0.00012779,2]
[338213240,1726389862156,-2000.0,0.00012779,2]
[338213241,1726389862176,-1824.829,0.00012779,2]
[338213242,1726389862959,-175.171,0.00012779,2]
[338213243,1726389862980,-2000.0,0.00012779,2]
[338213244,1726389863001,-1984.99338653,0.0001289,2]
[338213245,1726389863023,-180.15668832,0.000129,2]
[338213246,1726389863046,-5659.67892515,0.000129,2]
[338213247,1726389864304,-10000.0,0.000129,2]
[338213248,1726389865202,-10000.0,0.000129,2]
[338213249,1726389866067,-10000.0,0.000129,2]
[338213250,1726389884545,244.13,0.00010959,2]
[338213251,1726389941438,-688.44,0.0001273,2]
[338213252,1726389941459,-701.4,0.00012769,2]
[338213253,1726389941482,-3448.16,0.000129,2]
[338213254,1726390053690,-3800.0,0.000129,2]
[338213255,1726390072863,-1182.30015133,0.000129,2]
[338213256,1726390072884,-7.69984867,0.00012957,2]
[338213257,1726390099875,-960.68,0.00012765,2]
[338213258,1726390099895,-492.29015133,0.00012957,2]
[338213259,1726390099916,-340.0,0.00012979,2]
[338213260,1726390099937,-300.0,0.00012999,2]
[338213261,1726390099958,-170.81,0.00013,2]
[338213262,1726390099979,-3336.21984867,0.00013,2]
[338213263,1726390122910,-1069.60395638,0.000128,2]
[338213264,1726390122946,-1069.60395638,0.000128,2]
[338213267,1726390123003,-1069.60395638,0.000128,2]
[338213268,1726390123059,-191.18813086,0.000128,2]
[338213269,1726390123085,-878.41582552,0.00013,2]
[338213270,1726390123122,-1069.60395638,0.00013,2]
[338213271,1726390123170,-1069.60395638,0.00013,2]
[338213272,1726390123218,-229.24342607,0.00013,2]
[338213274,1726390172487,-381.02400325,0.00012781,2]
[338213275,1726390197612,-233.39425541,0.00012717,2]
[338213276,1726390197638,-260.48901283,0.00012781,2]
[338213277,1726390217894,336.45,0.00011021,2]
[338213281,1726390232273,-92.26698392,0.00012781,2]
[338213282,1726390232283,-965.80555,0.0001295,2]
[338213283,1726390232292,-300.0,0.00012999,2]
[338213284,1726390232301,-63641.92746608,0.00013,2]
[338213285,1726390232312,-898.6828212,0.00013,2]
[338213286,1726390232331,-810.86298749,0.00013,2]
[338213287,1726390232442,-556.26670477,0.00013,2]
[338213288,1726390232499,-567.54,0.00013,2]
[338213298,1726390238458,-3992.83374275,0.00013,2]
[338213299,1726390238567,-1098546.86444563,0.00013,2]
[338213300,1726390238577,-200.91498039,0.00013,2]
[338213301,1726390238587,-1012.12,0.00013,2]
[338213302,1726390238597,-751.46075259,0.00013,2]
[338213303,1726390238606,-287.82031854,0.00013,2]
[338213304,1726390238615,-179.26,0.00013047,2]
[338213305,1726390238625,-965.80555,0.0001308,2]
[338213306,1726390238635,-462.19,0.00013086,2]
[338213307,1726390238644,-194.75826541,0.00013216,2]
[338213308,1726390238654,-965.80555,0.0001324,2]
[338213309,1726390238663,-336.45,0.00013285,2]
[338213310,1726390238673,-965.80555,0.0001339,2]
[338213311,1726390238682,-172.09,0.00013399,2]
[338213312,1726390238691,-152.0,0.00013431,3]
[338213313,1726390238701,-965.80555,0.0001355,2]
[338213314,1726390238710,-196.28,0.00013699,2]
[338213315,1726390238720,-1930.08,0.00013699,2]
[338213316,1726390238729,-200.0,0.00013699,2]
[338213317,1726390238739,-2751.0,0.00013699,2]
[338213318,1726390238748,-446.34,0.00013699,2]
[338213319,1726390238758,-965.80555,0.000137,2]
[338213320,1726390238772,-298.03,0.00013767,2]
[338213321,1726390238782,-1261.0,0.00013767,2]
[338213322,1726390238792,-810.0,0.00013767,2]
[338213323,1726390238801,-558.0,0.00013767,2]
[338213324,1726390238812,-932.0,0.00013767,2]
[338213325,1726390238822,-553.0,0.00013767,2]
[338213326,1726390238831,-1941.634,0.00013767,2]
[338213327,1726390238842,-894.019,0.00013767,2]
[338213328,1726390238852,-248.0,0.00013767,2]
[338213329,1726390238861,-150.0,0.00013767,2]
[338213330,1726390238871,-1173.101,0.00013767,2]
[338213331,1726390238881,-7695.25873678,0.0001379,2]
[338213332,1726390238891,-317.32,0.000138,2]
[338213333,1726390238901,-999.6,0.000138,2]
[338213334,1726390238911,-796.0,0.00013821,2]
[338213335,1726390238920,-617.0,0.00013855,2]
[338213336,1726390238930,-205882.617633,0.000139,2]
[338213337,1726390238939,-152.0,0.00013927,4]
[338213338,1726390238948,-3715.15,0.00014051,2]
[338213339,1726390238958,-396216.93469657,0.000141,2]
[338213340,1726390238967,-389.44,0.00014126,2]
[338213341,1726390238977,-3738.52,0.00014149,2]
[338213342,1726390238986,-3785.23,0.00014253,2]
[338213343,1726390238995,-3762.45,0.00014296,2]
[338213344,1726390239006,-688.44,0.00014321,2]
[338213345,1726390239015,-3809.67,0.00014341,2]
[338213346,1726390239025,-196.28,0.00014384,2]
[338213347,1726390239034,-1930.08,0.00014384,2]
[338213348,1726390239044,-649.89926621,0.00014384,2]
[338213349,1726390239053,-3713.61,0.0001439,2]
[338213350,1726390239063,-206.0,0.000144,2]
[338213351,1726390239072,-150.0,0.000144,5]
[338213352,1726390239082,-202.0,0.0001442,2]
[338213353,1726390239091,-461.37081932,0.00014421,2]
[338213354,1726390239101,-152.0,0.00014423,5]
[338213355,1726390239110,-3708.87,0.00014435,2]
[338213356,1726390239120,-3807.37,0.00014436,2]
[338213357,1726390239130,-3762.18,0.00014437,2]
[338213358,1726390239139,-171.56588882,0.00014438,2]
[338213359,1726390239149,-3710.99,0.00014439,2]
[338213360,1726390239158,-1000.0,0.00014439,2]
[338213361,1726390239168,-1000.0,0.00014439,2]
[338213362,1726390239177,-1000.0,0.00014439,2]
[338213363,1726390239187,-1000.0,0.00014439,2]
[338213364,1726390239196,-1000.0,0.00014439,2]
[338213365,1726390239205,-1000.0,0.00014439,2]
[338213366,1726390239215,-1000.0,0.00014439,2]
[338213367,1726390239224,-1000.0,0.00014439,2]
[338213368,1726390239233,-1000.0,0.00014439,2]
[338213369,1726390239243,-1000.0,0.00014439,2]
[338213370,1726390239252,-1000.0,0.00014439,2]
[338213371,1726390239261,-1000.0,0.00014439,2]
[338213372,1726390239271,-1000.0,0.00014439,2]
[338213373,1726390239280,-1000.0,0.00014439,2]
[338213374,1726390239290,-1000.0,0.00014439,2]
[338213375,1726390239299,-2197.1831455,0.00014443,2]
[338213376,1726390239309,-6268.0958419,0.00014453,2]
[338213377,1726390239318,-27641.740841,0.00014453,2]
[338213378,1726390239328,-8500.0,0.00014463,7]
[338213379,1726390239337,-649.89926621,0.00014466,2]
[338213380,1726390239347,-202.0,0.0001448,2]
[338213381,1726390239356,-2427.0,0.000145,2]
[338213382,1726390239365,-48391.12299322,0.000145,2]
[338213383,1726390239374,-796.0,0.00014512,2]
[338213384,1726390239384,-89837.05903157,0.0001452,2]
[338213385,1726390239393,-60825.81,0.00014521,2]
[338213386,1726390239403,-649.89926621,0.00014521,2]
[338213387,1726390239413,-1000.0,0.00014521,2]
[338213388,1726390239422,-251.391165,0.00014521,2]
[338213389,1726390239431,-202.0,0.0001455,2]
[338213390,1726390239440,-206.0,0.0001455,2]
[338213391,1726390239450,-461.37081932,0.00014558,2]
[338213392,1726390239460,-48876.02257345,0.0001459,2]
[338213393,1726390239469,-1203.9713268,0.00014594,2]
[338213394,1726390239479,-3962.669832,0.000146,2]
[338213395,1726390239488,-649.89926621,0.00014603,2]
[338213396,1726390239497,-202.0,0.0001461,2]
[338213397,1726390239506,-500.0,0.00014635,2]
[338213398,1726390239515,-1203.97132679,0.00014644,2]
[338213399,1726390239524,-649.89926621,0.00014658,2]
[338213400,1726390239533,-202.0,0.0001468,2]
[338213401,1726390239542,-450563.67870901,0.00014689,2]
[338213402,1726390239551,-180.15668831,0.00014694,2]
[338213403,1726390239561,-461.37081932,0.00014694,2]
[338213404,1726390239570,-1203.97132679,0.00014694,2]
[338213405,1726390239580,-206.0,0.000147,2]
[338213406,1726390239589,-5880.50336976,0.000147,2]
[338213407,1726390239598,-2864.6939943,0.000147,2]
[338213408,1726390239608,-1000.0,0.000147,2]
[338213409,1726390239617,-1000.0,0.000147,2]
[338213410,1726390239626,-462.19,0.00014722,2]
[338213411,1726390239636,-649.89926621,0.0001474,2]
[338213412,1726390239645,-1116.88709575,0.0001474,2]
[338213413,1726390239655,-202.0,0.0001474,2]
[338213414,1726390239664,-500.0,0.00014773,2]
[338213415,1726390239673,-5216.1850746,0.00014784,2]
[338213416,1726390239682,-4164.2743074,0.00014784,2]
[338213417,1726390239691,-3112.3635401,0.00014784,2]
[338213418,1726390239701,-2060.4527729,0.00014784,2]
[338213419,1726390239711,-1008.5420056,0.00014784,2]
[338213420,1726390239721,-23002.9086423,0.00014784,2]
[338213421,1726390239730,-18364.0764436,0.00014784,2]
[338213422,1726390239739,-13725.2442448,0.00014784,2]
[338213423,1726390239748,-9086.4120461,0.00014784,2]
[338213424,1726390239758,-4447.5798474,0.00014784,2]
[338213425,1726390239767,-1830.4141049,0.00014784,2]
[338213426,1726390239776,-1463.6450642,0.00014784,2]
[338213427,1726390239785,-1096.8760236,0.00014784,2]
[338213428,1726390239794,-730.106983,0.00014784,2]
[338213429,1726390239803,-363.3379423,0.00014784,2]
[338213430,1726390239812,-1041.00700194,0.00014787,2]
[338213431,1726390239822,-1000.0,0.00014793,2]
[338213432,1726390239831,-1000.0,0.00014793,2]
[338213433,1726390239840,-1000.0,0.00014793,2]
[338213434,1726390239850,-239135.48196315,0.00014793,2]
[338213435,1726390239858,-1043.0951,0.00014793,2]
[338213436,1726390239867,-1000.0,0.00014793,2]
[338213437,1726390239876,-751.46075259,0.00014794,2]
[338213438,1726390239887,-751.46075259,0.00014794,2]
[338213439,1726390239896,-751.46075259,0.00014794,2]
[338213440,1726390239905,-751.46075259,0.00014794,2]
[338213441,1726390239914,-500.0,0.00014794,2]
[338213442,1726390239923,-500.0,0.00014794,2]
[338213443,1726390239933,-500.0,0.00014794,2]
[338213444,1726390239942,-386.43749531,0.00014794,2]
[338213445,1726390239951,-531.23,0.00014794,2]
[338213446,1726390239961,-531.23,0.00014794,2]
[338213447,1726390239971,-531.23,0.00014794,2]
[338213448,1726390239980,-531.23,0.00014794,2]
[338213449,1726390239989,-531.23,0.00014794,2]
[338213450,1726390239998,-531.23,0.00014794,2]
[338213451,1726390240008,-531.23,0.00014794,2]
[338213452,1726390240017,-531.23,0.00014794,2]
[338213453,1726390240026,-531.23,0.00014794,2]
[338213454,1726390240036,-531.23,0.00014794,2]
[338213455,1726390240046,-531.23,0.00014794,2]
[338213456,1726390240055,-531.23,0.00014794,2]
[338213457,1726390240064,-531.23,0.00014794,2]
[338213458,1726390240073,-531.23,0.00014794,2]
[338213459,1726390240082,-531.23,0.00014794,2]
[338213460,1726390240091,-531.23,0.00014794,2]
[338213461,1726390240101,-531.23,0.00014794,2]
[338213462,1726390240110,-531.23,0.00014794,2]
[338213463,1726390240120,-531.23,0.00014794,2]
[338213464,1726390240130,-531.23,0.00014794,2]
[338213465,1726390240139,-531.23,0.00014794,2]
[338213466,1726390240148,-531.23,0.00014794,2]
[338213467,1726390240158,-531.23,0.00014794,2]
[338213468,1726390240167,-531.42082934,0.00014794,2]
[338213469,1726390240177,-500.0,0.00014794,2]
[338213470,1726390240186,-500.0,0.00014794,2]
[338213471,1726390240196,-500.0,0.00014794,2]
[338213472,1726390240205,-500.0,0.00014794,2]
[338213473,1726390240214,-500.0,0.00014794,2]
[338213474,1726390240224,-500.0,0.00014794,2]
[338213475,1726390240234,-500.0,0.00014794,2]
[338213476,1726390240243,-500.0,0.00014794,2]
[338213477,1726390240252,-500.0,0.00014794,2]
[338213478,1726390240262,-726.99,0.00014794,2]
[338213479,1726390240276,-500.0,0.00014794,2]
[338213480,1726390240285,-726.99,0.00014794,2]
[338213481,1726390240295,-726.99,0.00014794,2]
[338213482,1726390240304,-500.0,0.00014794,2]
[338213483,1726390240314,-500.0,0.00014794,2]
[338213484,1726390240324,-726.99,0.00014794,2]
[338213485,1726390240334,-726.99,0.00014794,2]
[338213486,1726390240344,-500.0,0.00014794,2]
[338213487,1726390240354,-500.0,0.00014794,2]
[338213488,1726390240363,-726.99,0.00014794,2]
[338213489,1726390240373,-500.0,0.00014794,2]
[338213490,1726390240383,-726.99,0.00014794,2]
[338213491,1726390240398,-500.0,0.00014794,2]
[338213492,1726390240408,-726.99,0.00014794,2]
[338213493,1726390240417,-726.99,0.00014794,2]
[338213494,1726390240426,-726.99,0.00014794,2]
[338213495,1726390240436,-726.99,0.00014794,2]
[338213496,1726390240445,-726.99,0.00014794,2]
[338213497,1726390240456,-557.7,0.00014794,2]
[338213498,1726390240465,-726.99,0.00014794,2]
[338213499,1726390240474,-557.7,0.00014794,2]
[338213500,1726390240484,-726.99,0.00014794,2]
[338213501,1726390240494,-557.7,0.00014794,2]
[338213502,1726390240503,-726.99,0.00014794,2]
[338213503,1726390240512,-557.7,0.00014794,2]
[338213504,1726390240521,-726.99,0.00014794,2]
[338213505,1726390240531,-557.7,0.00014794,2]
[338213506,1726390240541,-726.99,0.00014794,2]